bitfinex/quotes_BTCUSD_20220307
["timestamp","ask_amount","ask_price","bid_price","bid_amount"]
[1646646802856,0.05,38177.0,38175.0,0.39348]
[1646646806912,0.045,38177.0,38175.0,0.39348]
[1646646812263,0.095,38177.0,38175.0,0.39348]
[1646646812463,0.095,38177.0,38170.0,0.03626743]
[1646646812464,0.0130376,38175.0,38170.0,0.03626743]
[1646646812720,0.050957,38174.0,38170.0,0.03626743]
[1646646812918,0.0519376,38175.0,38170.0,0.03626743]
[1646646812919,0.050957,38172.0,38170.0,0.03626743]
[1646646813119,0.365549,38173.0,38170.0,0.03626743]
[1646646813120,0.57259885,38171.0,38170.0,0.03626743]
[1646646813422,0.57164185,38171.0,38170.0,0.03626743]
[1646646813628,0.62259885,38171.0,38170.0,0.03626743]
[1646646813825,0.32259885,38171.0,38170.0,0.03626743]
[1646646814021,0.27164185,38171.0,38170.0,0.03626743]
[1646646814221,0.22164185,38171.0,38170.0,0.03626743]
[1646646814822,0.22264185,38171.0,38164.0,0.18654192]
[1646646815022,0.05,38169.0,38165.0,0.00020412]
[1646646816024,0.05,38169.0,38164.0,0.18654192]
[1646646816224,0.04402199,38169.0,38165.0,0.00020412]
[1646646816460,0.04402199,38169.0,38166.0,0.39348]
[1646646817062,0.04402199,38169.0,38165.0,0.00020412]
[1646646817262,0.04402199,38169.0,38164.0,0.18654192]
[1646646817459,0.04402199,38169.0,38165.0,0.39368412]
[1646646817665,0.04402199,38169.0,38165.0,0.00020412]
[1646646817864,0.04402199,38169.0,38166.0,0.39348]
[1646646818061,0.04402199,38169.0,38165.0,0.00020412]
[1646646818462,0.04402199,38169.0,38166.0,0.39348]
[1646646818664,0.04402199,38169.0,38165.0,0.00020412]
[1646646818862,0.04402199,38169.0,38166.0,0.39348]
[1646646819263,0.04402199,38169.0,38165.0,0.394174]
[1646646819667,0.04402199,38169.0,38166.0,0.394174]
[1646646819867,0.04402199,38169.0,38164.0,0.04672903]
[1646646820114,0.04402199,38169.0,38165.0,0.394174]
[1646646820316,0.04402199,38169.0,38164.0,0.04672903]
[1646646820510,0.04402199,38169.0,38164.0,0.04712603]
[1646646820911,0.04402199,38169.0,38164.0,0.000397]
[1646646821113,0.54068699,38169.0,38164.0,0.000397]
[1646646821511,0.54068699,38169.0,38164.0,0.00034349]
[1646646821815,0.065557,38166.0,38164.0,0.00034349]
[1646646822011,0.19675804,38164.0,38157.0,1.78418166]
[1646646822218,0.19675804,38164.0,38158.0,0.394174]
[1646646823211,0.01473813,38163.0,38157.0,1.98985144]
[1646646823414,0.01473813,38163.0,38159.0,0.00023865]
[1646646824063,0.01473813,38163.0,38159.0,0.39441265]
[1646646824457,0.01473813,38163.0,38159.0,0.394174]
[1646646824660,0.01473813,38163.0,38159.0,0.00023865]
[1646646824864,0.131117,38162.0,38159.0,0.00023865]
[1646646825063,0.131117,38162.0,38160.0,0.394174]
[1646646825761,0.131117,38162.0,38157.0,1.98985144]
[1646646826061,0.131117,38162.0,38159.0,0.00023865]
[1646646826959,0.131117,38162.0,38158.0,0.394174]
[1646646827159,0.131117,38162.0,38159.0,0.00023865]
[1646646827362,0.181117,38162.0,38160.0,0.394174]
[1646646828214,0.131117,38162.0,38160.0,0.394174]
[1646646828416,0.08029513,38163.0,38160.0,0.394174]
[1646646829215,0.08029513,38163.0,38161.0,0.07039727]
[1646646829415,0.08029513,38163.0,38162.0,0.000854]
[1646646829614,0.08029513,38163.0,38162.0,0.394174]
[1646646829813,0.08029513,38163.0,38161.0,0.394206]
[1646646830515,0.08029513,38163.0,38161.0,0.56167761]
[1646646831014,0.08029513,38163.0,38161.0,0.394206]
[1646646834770,0.08029513,38163.0,38160.0,0.0002215]
[1646646834974,0.08129513,38163.0,38161.0,0.394206]
[1646646835219,0.08129513,38163.0,38162.0,0.394206]
[1646646835420,0.08129513,38163.0,38160.0,0.00022115]
[1646646835816,0.08129513,38163.0,38161.0,0.394211]
[1646646836318,0.08029513,38163.0,38161.0,0.394211]
[1646646839469,0.08029513,38163.0,38160.0,0.00022117]
[1646646840071,0.08029513,38163.0,38157.0,0.20566978]
[1646646840271,0.08029513,38163.0,38160.0,0.00022118]
[1646646841075,0.08129513,38163.0,38161.0,0.394211]
[1646646841474,0.08129513,38163.0,38161.0,0.5945326]
[1646646841876,0.08129513,38163.0,38161.0,0.394211]
[1646646842275,0.08029513,38163.0,38161.0,0.394211]
[1646646842479,0.08029513,38163.0,38157.0,0.20566978]
[1646646842713,0.08029513,38163.0,38160.0,0.0002214]
[1646646843118,0.18623829,38162.0,38160.0,0.0002214]
[1646646843622,0.18623829,38162.0,38157.0,0.20566978]
[1646646843813,0.18623829,38162.0,38159.0,0.0002214]
[1646646844014,0.08029513,38163.0,38159.0,0.0002214]
[1646646844917,0.08129513,38163.0,38158.0,0.394211]
[1646646845115,0.08129513,38163.0,38159.0,0.0002214]
[1646646846016,0.08129513,38163.0,38157.0,0.20566978]
[1646646846216,0.08129513,38163.0,38159.0,0.00022116]
[1646646847269,0.08129513,38163.0,38157.0,0.20566978]
[1646646847473,0.08129513,38163.0,38159.0,0.00022116]
[1646646848275,0.08029513,38163.0,38159.0,0.00022116]
[1646646848471,0.08029513,38163.0,38160.0,0.394211]
[1646646848676,0.08029513,38163.0,38160.0,0.61339542]
[1646646849077,0.01069893,38162.0,38160.0,0.61339542]
[1646646849272,0.06554,38167.0,38160.0,0.61339542]
[1646646849273,0.01407938,38161.0,38160.0,0.2221366]
[1646646849672,0.06554,38167.0,38164.0,0.45228852]
[1646646849876,0.06554,38167.0,38165.0,0.264892]
[1646646850316,0.04402199,38169.0,38165.0,0.264892]
[1646646851518,0.181086,38170.0,38165.0,0.264892]
[1646646851817,0.065542,38169.0,38165.0,0.264892]
[1646646852116,0.065542,38169.0,38162.0,0.2]
[1646646852117,0.065542,38169.0,38164.0,0.267843]
[1646646852517,0.065542,38169.0,38165.0,0.267836]
[1646646852718,0.41803839,38169.0,38163.0,0.00022095]
[1646646853018,0.41903839,38169.0,38163.0,0.00022095]
[1646646853217,0.41903839,38169.0,38162.0,0.2]
[1646646853616,0.41903839,38169.0,38163.0,0.00022766]
[1646646853870,0.24298079,38169.0,38163.0,0.00022766]
[1646646854271,0.24158079,38169.0,38163.0,0.00022766]
[1646646854473,0.24158079,38169.0,38167.0,0.00018698]
[1646646855171,0.24218079,38169.0,38167.0,0.00018698]
[1646646855871,0.45277378,38169.0,38167.0,0.00018698]
[1646646856273,0.26140922,38169.0,38167.0,0.00018698]
[1646646856571,0.05081623,38169.0,38167.0,0.00018698]
[1646646856971,0.05041623,38169.0,38167.0,0.00018698]
[1646646857921,0.05001623,38169.0,38167.0,0.00018698]
[1646646861126,0.05101623,38169.0,38167.0,0.00018698]
[1646646861972,0.26160922,38169.0,38165.0,0.18800764]
[1646646862172,0.26060922,38169.0,38165.0,0.18800764]
[1646646862972,0.26160922,38169.0,38165.0,0.18800764]
[1646646863172,0.2618476,38169.0,38165.0,0.18800764]
[1646646863574,0.21059299,38168.0,38165.0,0.18800764]
[1646646865722,0.26084159,38169.0,38165.0,0.3557563]
[1646646866121,0.26084159,38169.0,38165.0,0.18800764]
[1646646866326,0.21059299,38168.0,38165.0,0.18800764]
[1646646866521,0.21059299,38168.0,38160.0,0.76112504]
[1646646866522,0.21059299,38168.0,38160.0,1.11587328]
[1646646866725,0.21059299,38167.0,38161.0,0.00023242]
[1646646866922,0.21059299,38166.0,38161.0,0.00023242]
[1646646867123,0.2224987,38165.0,38161.0,0.00023242]
[1646646867424,0.43309169,38165.0,38161.0,0.00023242]
[1646646867623,0.131124,38163.0,38161.0,0.00023242]
[1646646867822,0.131124,38163.0,38160.0,0.70303531]
[1646646868021,0.131124,38163.0,38161.0,0.0002324]
[1646646868621,0.131124,38163.0,38161.0,0.4502324]
[1646646868874,0.131124,38163.0,38161.0,0.45]
[1646646869071,0.181124,38163.0,38161.0,0.45]
[1646646869371,0.181124,38163.0,38162.0,0.18015564]
[1646646870176,0.131124,38163.0,38162.0,0.18015564]
[1646646870573,0.21081307,38169.0,38162.0,0.18015564]
[1646646870772,0.21081307,38169.0,38162.0,0.39299361]
[1646646870975,0.00022008,38169.0,38163.0,0.2522]
[1646646871174,0.00022008,38169.0,38168.0,0.19931452]
[1646646871377,0.05,38170.0,38168.0,0.38728997]
[1646646871580,0.05,38170.0,38169.0,0.0522]
[1646646871977,0.05,38173.0,38170.0,0.02608]
[1646646872175,0.001,38175.0,38173.0,0.01660791]
[1646646872374,0.001,38175.0,38174.0,0.21964766]
[1646646872627,0.001,38175.0,38174.0,0.4120183]
[1646646873023,0.001,38175.0,38174.0,0.48334341]
[1646646873238,0.001,38175.0,38174.0,0.88554341]
[1646646874225,0.001,38175.0,38174.0,0.8142183]
[1646646875026,0.001,38175.0,38174.0,0.62184766]
[1646646875237,0.001,38175.0,38174.0,0.89576766]
[1646646875427,0.001,38175.0,38173.0,0.2]
[1646646875728,0.001,38175.0,38169.0,0.1]
[1646646875729,0.065539,38174.0,38169.0,0.1]
[1646646875927,0.065539,38174.0,38170.0,0.1]
[1646646876126,0.19975611,38173.0,38169.0,0.1]
[1646646876383,0.71974877,38173.0,38163.0,0.41327881]
[1646646876580,0.71974877,38173.0,38162.0,0.114]
[1646646876581,0.76974877,38173.0,38162.0,0.114]
[1646646876779,0.76974877,38173.0,38161.0,0.00022793]
[1646646876780,0.02608,38169.0,38161.0,0.00022793]
[1646646876973,0.02608,38169.0,38155.0,0.2]
[1646646876974,0.02608,38167.0,38155.0,0.77683797]
[1646646877173,0.05,38164.0,38155.0,0.564]
[1646646877375,0.20922871,38164.0,38155.0,0.564]
[1646646877576,0.20922871,38164.0,38156.0,0.15782791]
[1646646877776,0.35922871,38164.0,38156.0,0.15782791]
[1646646877974,0.25922871,38164.0,38156.0,0.15782791]
[1646646879379,0.05,38164.0,38156.0,0.15782791]
[1646646879575,0.25863405,38166.0,38161.0,0.20495143]
[1646646879776,0.01318715,38165.0,38161.0,0.20495143]
[1646646879977,0.01030347,38163.0,38161.0,0.20495143]
[1646646880238,0.01249397,38162.0,38161.0,0.20495143]
[1646646880438,0.065563,38166.0,38159.0,0.00023866]
[1646646880939,0.065563,38166.0,38156.0,0.15782791]
[1646646881140,0.065563,38166.0,38159.0,0.00023866]
[1646646881338,0.115563,38166.0,38159.0,0.00023866]
[1646646881540,0.115563,38166.0,38160.0,0.91377711]
[1646646881939,0.115563,38166.0,38162.0,0.21476292]
[1646646882139,0.115563,38166.0,38160.0,0.91377711]
[1646646882339,0.181115,38166.0,38160.0,0.91377711]
[1646646883242,0.3,38165.0,38160.0,0.70303531]
[1646646883443,0.157195,38166.0,38160.0,0.70303531]
[1646646883640,0.131115,38166.0,38160.0,0.70303531]
[1646646884275,0.20266835,38164.0,38160.0,0.70303531]
[1646646884471,0.21214265,38162.0,38160.0,0.70303531]
[1646646885072,0.20266835,38164.0,38160.0,0.70303531]
[1646646885675,0.3,38165.0,38160.0,0.70303531]
[1646646885873,0.131115,38166.0,38160.0,0.70303531]
[1646646887074,0.132115,38166.0,38160.0,0.70303531]
[1646646888222,0.05,38165.0,38160.0,0.70303531]
[1646646889225,0.051,38165.0,38160.0,0.70303531]
[1646646890325,0.05,38165.0,38160.0,0.70303531]
[1646646890726,0.0115555,38163.0,38160.0,0.70303531]
[1646646892178,0.131115,38166.0,38162.0,0.18960944]
[1646646892576,0.065563,38166.0,38162.0,0.18960944]
[1646646893776,0.06555,38165.0,38162.0,0.18960944]
[1646646893975,0.196666,38166.0,38162.0,0.18960944]
[1646646893976,0.065563,38166.0,38162.0,0.18960944]
[1646646896031,0.00022093,38168.0,38162.0,0.18960944]
[1646646896531,0.237434,38171.0,38165.0,0.06985433]
[1646646896732,0.115534,38171.0,38165.0,0.06985433]
[1646646896931,0.00022093,38168.0,38165.0,0.06985433]
[1646646897531,0.00022093,38168.0,38167.0,0.19180277]
[1646646897733,0.115534,38171.0,38167.0,0.19180277]
[1646646897935,0.115534,38171.0,38168.0,0.17498831]
[1646646898133,0.115534,38171.0,38168.0,0.43830858]
[1646646899188,0.11575492,38171.0,38168.0,0.43830858]
[1646646899394,0.11575492,38171.0,38168.0,0.17498831]
[1646646899590,0.11575492,38171.0,38167.0,0.19180277]
[1646646899591,0.11575492,38171.0,38163.0,0.0522]
[1646646900190,0.06554,38170.0,38163.0,0.0522]
[1646646900389,0.00022093,38169.0,38163.0,0.0522]
[1646646900589,0.00022093,38169.0,38166.0,0.21649219]
[1646646901290,0.06554,38170.0,38166.0,0.21649219]
[1646646901692,0.00022093,38169.0,38166.0,0.21649219]
[1646646902292,0.01126369,38169.0,38166.0,0.21649219]
[1646646902497,0.01399039,38167.0,38166.0,0.21649219]
[1646646902743,0.065544,38170.0,38166.0,0.21649219]
[1646646902940,0.00022093,38169.0,38162.0,0.2]
[1646646903340,0.00022093,38169.0,38161.0,0.2]
[1646646903541,0.00022093,38169.0,38160.0,0.95303531]
[1646646903739,0.23702292,38170.0,38160.0,0.95303531]
[1646646903740,0.53702292,38170.0,38160.0,0.95303531]
[1646646903943,0.28958435,38166.0,38160.0,0.95303531]
[1646646904142,0.28958435,38166.0,38160.0,0.70303531]
[1646646904940,0.065552,38166.0,38160.0,0.70303531]
[1646646907175,0.065552,38166.0,38161.0,0.45]
[1646646909477,0.00022092,38168.0,38167.0,0.21294981]
[1646646909675,0.00022092,38168.0,38161.0,0.45]
[1646646909876,0.065551,38169.0,38161.0,0.45]
[1646646910126,0.00022092,38168.0,38160.0,0.70303531]
[1646646910328,0.00022092,38168.0,38160.0,0.95303531]
[1646646910927,0.28234655,38169.0,38160.0,0.95303531]
[1646646911128,0.28234655,38169.0,38160.0,0.70303531]
[1646646911329,0.00022093,38168.0,38160.0,0.70303531]
[1646646911529,0.00022093,38168.0,38161.0,0.45]
[1646646912130,0.065551,38169.0,38162.0,0.3]
[1646646912330,0.00022093,38168.0,38162.0,0.3]
[1646646912728,0.01044619,38167.0,38162.0,0.3]
[1646646912932,0.01416597,38166.0,38162.0,0.3]
[1646646913127,0.0152256,38165.0,38162.0,0.3]
[1646646913330,0.01128919,38165.0,38162.0,0.3]
[1646646913529,0.065551,38165.0,38164.0,0.21930143]
[1646646913731,0.065551,38165.0,38164.0,0.51930143]
[1646646913977,0.065551,38165.0,38164.0,0.21930143]
[1646646914376,0.065551,38165.0,38164.0,0.51930143]
[1646646914577,0.065551,38169.0,38164.0,0.51930143]
[1646646914778,0.00022093,38168.0,38164.0,0.51930143]
[1646646914979,0.00022093,38168.0,38163.0,0.17709137]
[1646646915176,0.00022093,38168.0,38162.0,0.3]
[1646646915379,0.00022093,38168.0,38160.0,0.95303531]
[1646646915380,0.131101,38167.0,38161.0,0.3]
[1646646915580,0.131101,38167.0,38161.0,0.4]
[1646646916177,0.00022093,38168.0,38163.0,0.18707014]
[1646646916978,0.131087,38169.0,38163.0,0.18707014]
[1646646917178,0.131087,38169.0,38164.0,0.3]
[1646646917479,0.00022093,38168.0,38164.0,0.3]
[1646646917929,0.00022093,38168.0,38163.0,0.18707014]
[1646646918134,0.131087,38169.0,38163.0,0.18707014]
[1646646918329,0.131087,38169.0,38162.0,0.3]
[1646646918529,0.00022093,38168.0,38162.0,0.3]
[1646646918730,0.1311,38167.0,38162.0,0.3]
[1646646918933,0.00022093,38168.0,38162.0,0.3]
[1646646919331,0.131087,38169.0,38162.0,0.3]
[1646646919534,0.131087,38169.0,38163.0,0.22024482]
[1646646919732,0.00022093,38168.0,38162.0,0.3]
[1646646920534,0.131087,38169.0,38162.0,0.3]
[1646646920736,0.131087,38169.0,38165.0,0.16161288]
[1646646920938,0.00022093,38168.0,38162.0,0.3]
[1646646921778,0.34218955,38169.0,38164.0,0.17880932]
[1646646921977,0.00022093,38168.0,38164.0,0.17880932]
[1646646922175,0.1311,38167.0,38162.0,0.3]
[1646646922776,0.00022093,38168.0,38162.0,0.3]
[1646646922977,0.34218955,38169.0,38162.0,0.3]
[1646646923280,0.00022093,38168.0,38163.0,0.16125203]
[1646646923677,0.00022093,38168.0,38166.0,0.17174006]
[1646646923678,0.011599,38167.0,38166.0,0.17174006]
[1646646923889,0.00022093,38168.0,38166.0,0.17174006]
[1646646924275,0.131087,38169.0,38166.0,0.17174006]
[1646646924475,0.00022093,38168.0,38166.0,0.17174006]
[1646646925329,0.131087,38169.0,38166.0,0.17174006]
[1646646925730,0.13130793,38169.0,38166.0,0.17174006]
[1646646926632,0.131087,38169.0,38166.0,0.17174006]
[1646646926834,0.13130793,38169.0,38166.0,0.17174006]
[1646646927440,0.13130793,38169.0,38167.0,0.3]
[1646646927441,0.06575893,38169.0,38167.0,0.3]
[1646646927733,0.065534,38174.0,38167.0,0.4522]
[1646646927734,0.065523,38174.0,38167.0,0.4522]
[1646646928133,0.00022093,38169.0,38167.0,0.1522]
[1646646928334,0.00022093,38169.0,38168.0,0.19782087]
[1646646928638,0.00022093,38169.0,38168.0,0.65430087]
[1646646929109,0.065523,38174.0,38170.0,0.49541942]
[1646646929303,0.065523,38174.0,38171.0,0.3522]
[1646646929603,0.065523,38174.0,38172.0,0.1692275]
[1646646932504,0.065523,38174.0,38171.0,0.3]
[1646646932730,0.131055,38174.0,38171.0,0.1]
[1646646933030,0.065523,38174.0,38171.0,0.1]
[1646646933230,0.066523,38174.0,38170.0,0.34541942]
[1646646933529,0.066523,38174.0,38170.0,0.51837819]
[1646646933931,0.01511424,38173.0,38170.0,0.51837819]
[1646646934936,0.14617224,38173.0,38170.0,0.51837819]
[1646646935333,0.14639316,38173.0,38170.0,0.51837819]
[1646646936133,0.14617224,38173.0,38171.0,0.3]
[1646646936378,0.05,38172.0,38171.0,0.1]
[1646646937177,0.14639316,38173.0,38171.0,0.6]
[1646646937377,0.14617224,38173.0,38171.0,0.3]
[1646646937578,0.01511424,38173.0,38171.0,0.6]
[1646646937880,0.01533516,38173.0,38171.0,0.6]
[1646646938280,0.01533516,38173.0,38171.0,0.3]
[1646646938478,0.01533516,38173.0,38171.0,0.1]
[1646646938679,0.01011424,38173.0,38171.0,0.1]
[1646646938886,0.01011424,38173.0,38171.0,0.3]
[1646646939180,0.01011424,38173.0,38171.0,0.1]
[1646646939384,0.065521,38178.0,38175.0,0.36035899]
[1646646939783,0.01395419,38177.0,38175.0,0.36035899]
[1646646939985,0.065521,38178.0,38175.0,0.36035899]
[1646646940228,0.131052,38179.0,38175.0,0.36035899]
[1646646940429,0.065531,38178.0,38175.0,0.36035899]
[1646646942530,0.05576958,38178.0,38175.0,0.36035899]
[1646646943535,0.055531,38178.0,38175.0,0.36035899]
[1646646943736,0.05576958,38178.0,38175.0,0.36035899]
[1646646944588,0.055531,38178.0,38175.0,0.36035899]
[1646646944785,0.05576958,38178.0,38175.0,0.36035899]
[1646646945887,0.065534,38177.0,38175.0,0.36035899]
[1646646946089,0.065534,38177.0,38170.0,0.27395877]
[1646646946489,0.065534,38177.0,38170.0,0.27295877]
[1646646946787,0.065534,38177.0,38170.0,0.57295877]
[1646646946987,0.055531,38178.0,38172.0,0.45]
[1646646947288,0.00023257,38176.0,38172.0,0.45]
[1646646947488,0.00023257,38176.0,38172.0,0.25]
[1646646947736,0.00023257,38176.0,38175.0,0.17986652]
[1646646948136,0.055531,38178.0,38175.0,0.17986652]
[1646646948438,0.00023257,38177.0,38176.0,0.1765013]
[1646646949339,0.00023257,38177.0,38176.0,0.4734284]
[1646646949540,0.32782493,38186.0,38185.0,0.25]
[1646646949737,0.1183,38187.0,38185.0,0.03991156]
[1646646949738,0.31844868,38187.0,38185.0,0.03991156]
[1646646949939,0.31844868,38188.0,38185.0,0.03991156]
[1646646950140,0.31844868,38188.0,38187.0,0.45371244]
[1646646950141,0.71265968,38188.0,38187.0,0.45371244]
[1646646950345,0.3,38192.0,38187.0,0.50371244]
[1646646950346,0.31844868,38189.0,38187.0,0.50371244]
[1646646950537,0.1132,38194.0,38188.0,0.23991156]
[1646646950538,0.31844868,38191.0,38188.0,0.23991156]
[1646646950738,0.37217812,38193.0,38190.0,0.2]
[1646646950939,0.37217812,38193.0,38192.0,0.03991156]
[1646646950940,0.394211,38193.0,38192.0,0.03991156]
[1646646951800,0.5142599,38193.0,38190.0,0.05]
[1646646951997,0.76406043,38192.0,38189.0,0.02166193]
[1646646952200,0.76406043,38192.0,38187.0,0.05]
[1646646952201,0.36984943,38191.0,38187.0,0.05]
[1646646952397,0.694211,38192.0,38187.0,0.05]
[1646646952398,0.31699699,38188.0,38187.0,0.05]
[1646646952598,0.8626146,38188.0,38187.0,0.05]
[1646646952797,0.9626146,38188.0,38187.0,0.05]
[1646646953398,0.9686146,38188.0,38183.0,0.46266193]
[1646646953598,0.394211,38185.0,38183.0,0.46266193]
[1646646953799,0.694211,38184.0,38183.0,0.46266193]
[1646646954798,0.394211,38184.0,38183.0,0.46266193]
[1646646955232,0.399211,38184.0,38183.0,0.46266193]
[1646646956534,0.394211,38184.0,38183.0,0.46266193]
[1646646957139,0.394211,38184.0,38183.0,0.441]
[1646646957140,0.694211,38184.0,38183.0,0.441]
[1646646957335,0.694211,38184.0,38183.0,0.001]
[1646646957336,0.751411,38184.0,38183.0,0.001]
[1646646957536,1.22126043,38184.0,38183.0,0.001]
[1646646957736,1.32126043,38184.0,38183.0,0.001]
[1646646958138,1.3210948,38184.0,38183.0,0.001]
[1646646958538,1.3160948,38184.0,38183.0,0.001]
[1646646958993,1.05599733,38184.0,38183.0,0.001]
[1646646959793,0.55599733,38184.0,38183.0,0.001]
[1646646959996,0.95020233,38184.0,38183.0,0.001]
[1646646960193,1.21030342,38184.0,38183.0,0.001]
[1646646960998,1.01609242,38184.0,38183.0,0.001]
[1646646961194,1.24664345,38184.0,38183.0,0.001]
[1646646961796,1.24664345,38184.0,38183.0,0.00058458]
[1646646962397,0.98667886,38184.0,38183.0,0.00058458]
[1646646962831,0.75612783,38184.0,38183.0,0.00058458]
[1646646963031,0.546405,38184.0,38183.0,0.00058458]
[1646646963234,0.494205,38184.0,38183.0,0.00058458]
[1646646963432,0.394205,38184.0,38183.0,0.00058458]
[1646646963631,0.71129378,38184.0,38183.0,0.00058458]
[1646646964134,0.394205,38184.0,38183.0,0.19047351]
[1646646964533,0.31721269,38185.0,38183.0,0.21213544]
[1646646964736,0.31721269,38185.0,38184.0,0.2]
[1646646964737,0.00012391,38185.0,38184.0,0.2]
[1646646965133,0.31708878,38188.0,38187.0,0.02166193]
[1646646965535,0.71129378,38188.0,38187.0,0.02166193]
[1646646965737,0.31708878,38188.0,38187.0,0.02166193]
[1646646966383,0.36991151,38191.0,38187.0,0.02166193]
[1646646966384,0.31708878,38189.0,38187.0,0.02166193]
[1646646966583,0.394205,38188.0,38187.0,0.02166193]
[1646646966785,0.31708878,38188.0,38187.0,0.02166193]
[1646646967985,0.71129378,38188.0,38187.0,0.02166193]
[1646646968189,0.31708878,38188.0,38187.0,0.02166193]
[1646646968386,0.00022107,38189.0,38187.0,0.22166193]
[1646646968387,0.31730985,38189.0,38187.0,0.22166193]
[1646646968586,0.31730985,38189.0,38188.0,0.394128]
[1646646968587,0.26451063,38189.0,38188.0,0.394128]
[1646646968787,0.36991151,38194.0,38189.0,0.02166193]
[1646646968788,0.31708878,38191.0,38189.0,0.02166193]
[1646646968986,0.31708878,38192.0,38190.0,0.2]
[1646646969187,0.31708878,38192.0,38191.0,0.18992077]
[1646646969387,0.31708878,38192.0,38191.0,0.36765351]
[1646646969587,0.11732737,38195.0,38192.0,0.394083]
[1646646969588,0.31708878,38193.0,38192.0,0.394083]
[1646646969791,0.36991151,38195.0,38192.0,0.56805662]
[1646646969792,0.31708878,38195.0,38192.0,0.56805662]
[1646646969989,0.31708878,38196.0,38194.0,0.02166193]
[1646646970236,0.31708878,38197.0,38196.0,0.02166193]
[1646646970440,0.31708878,38198.0,38197.0,0.02166193]
[1646646970637,0.19212145,38206.0,38197.0,0.02166193]
[1646646970638,0.31708878,38199.0,38197.0,0.2015656]
[1646646970840,0.31708878,38199.0,38198.0,0.296337]
[1646646971337,0.00012391,38200.0,38198.0,0.296337]
[1646646971538,0.00012391,38200.0,38197.0,0.02166193]
[1646646972342,0.31708878,38201.0,38200.0,0.02166193]
[1646646972940,0.08919763,38205.0,38200.0,0.02166193]
[1646646972941,0.28221447,38202.0,38200.0,0.02166193]
[1646646973140,0.08919763,38205.0,38200.0,0.02166193]
[1646646973141,0.26408137,38201.0,38200.0,0.02166193]
[1646646973743,0.26408137,38202.0,38201.0,0.2]
[1646646973982,0.26408137,38202.0,38201.0,0.02166193]
[1646646974180,0.00023896,38203.0,38201.0,0.02166193]
[1646646974380,0.26409677,38202.0,38201.0,0.02166193]
[1646646975383,0.00023896,38204.0,38201.0,0.02166193]
[1646646975580,0.00023896,38204.0,38201.0,0.22166193]
[1646646975581,0.26392261,38202.0,38201.0,0.22166193]
[1646646975781,0.26392261,38203.0,38202.0,0.20514936]
[1646646977184,0.21114222,38203.0,38202.0,0.20514936]
[1646646977383,0.21214222,38203.0,38202.0,0.20514936]
[1646646977639,0.001,38203.0,38202.0,0.20514936]
[1646646978032,0.13954827,38207.0,38204.0,0.02166193]
[1646646978235,0.39418,38206.0,38204.0,0.02166193]
[1646646978434,0.0111,38209.0,38204.0,0.02166193]
[1646646978634,0.39418,38208.0,38204.0,0.02166193]
[1646646978833,0.0111,38209.0,38204.0,0.02166193]
[1646646979236,0.39418,38208.0,38204.0,0.02166193]
[1646646979438,0.0111,38209.0,38204.0,0.02166193]
[1646646979439,0.20938277,38209.0,38204.0,0.02166193]
[1646646979635,0.00012368,38208.0,38204.0,0.02166193]
[1646646980439,0.39418,38207.0,38204.0,0.02166193]
[1646646980739,0.39208778,38207.0,38204.0,0.02166193]
[1646646980937,0.39438088,38208.0,38204.0,0.02166193]
[1646646981585,0.39416,38207.0,38204.0,0.02166193]
[1646646983087,0.39416,38207.0,38201.0,0.02166193]
[1646646983288,0.39438088,38207.0,38201.0,0.02166193]
[1646646983490,0.40038088,38207.0,38198.0,0.02166193]
[1646646983790,0.71717713,38207.0,38198.0,0.02166193]
[1646646984197,0.17758824,38203.0,38198.0,0.02166193]
[1646646984389,0.39416,38202.0,38198.0,0.02166193]
[1646646985134,0.39416,38201.0,38197.0,0.16877647]
[1646646985338,0.39416,38200.0,38193.0,0.001]
[1646646985835,0.2228093,38194.0,38193.0,0.001]
[1646646986036,0.6169693,38194.0,38193.0,0.001]
[1646646986636,0.6169693,38194.0,38190.0,0.20147612]
[1646646986838,0.39416,38193.0,38190.0,0.20147612]
[1646646989484,0.39616,38193.0,38190.0,0.20147612]
[1646646989683,0.39616,38193.0,38190.0,0.17153444]
[1646646990684,0.39416,38193.0,38190.0,0.17153444]
[1646646991486,0.39816,38193.0,38190.0,0.17153444]
[1646646991688,0.39816,38193.0,38190.0,0.16653444]
[1646646991888,0.39816,38193.0,38184.0,0.45266693]
[1646646992089,0.004,38193.0,38184.0,0.15266693]
[1646646992288,0.39416,38191.0,38184.0,0.45266693]
[1646646992490,0.004,38193.0,38184.0,0.15266693]
[1646646992734,0.02608,38195.0,38189.0,0.19736874]
[1646646992935,0.39416,38194.0,38189.0,0.19736874]
[1646646993133,0.58637555,38194.0,38189.0,0.19736874]
[1646646994737,0.39416,38194.0,38189.0,0.19736874]
[1646646995737,0.18422072,38192.0,38189.0,0.19736874]
[1646646996039,0.39416,38191.0,38189.0,0.19736874]
[1646646997283,0.39416,38190.0,38189.0,0.19736874]
[1646646997482,0.39416,38190.0,38189.0,0.24736874]
[1646646997883,0.006,38191.0,38189.0,0.24736874]
[1646646998084,0.39416,38190.0,38189.0,0.24736874]
[1646646998287,0.006,38191.0,38189.0,0.24736874]
[1646646999286,0.00315606,38191.0,38189.0,0.26903067]
[1646646999486,0.1196,38200.0,38190.0,0.1841172]
[1646646999686,0.33455174,38200.0,38192.0,0.130978]
[1646646999896,0.1196,38200.0,38199.0,0.18424829]
[1646647000139,0.46679625,38203.0,38193.0,0.25881447]
[1646647000140,0.39416,38199.0,38193.0,0.30881447]
[1646647000539,0.39416,38199.0,38193.0,0.05]
[1646647001140,0.39416,38199.0,38193.0,0.22647654]
[1646647001541,0.39616,38199.0,38193.0,0.22647654]
[1646647002144,0.05,38198.0,38193.0,0.17647654]
[1646647002346,0.39416,38197.0,38193.0,0.30746454]
[1646647002745,0.05,38196.0,38193.0,0.30746454]
[1646647002943,0.05,38196.0,38193.0,0.17647654]
[1646647003143,0.39416,38198.0,38193.0,0.22647654]
[1646647003547,0.39416,38195.0,38193.0,0.22647654]
[1646647003744,0.003,38196.0,38193.0,0.22647654]
[1646647004386,0.39416,38195.0,38193.0,0.22647654]
[1646647004598,0.003,38196.0,38193.0,0.22647654]
[1646647004787,0.81704661,38199.0,38193.0,0.22647654]
[1646647004988,0.39416,38198.0,38193.0,0.22647654]
[1646647005390,0.39416,38198.0,38193.0,0.180996]
[1646647005590,0.3,38197.0,38190.0,0.05]